[Event "December 5 Early 2023"]
[Site "https://www.chess.com"]
[Date "2023.12.05"]
[Round "5"]
[White "Agibileg, Uurtsaikh"]
[Black "Liu, Casper"]
[Result "0-1"]
[Board "109"]
[TimeControl "180+1"]
[WhiteFideId "4901606"]
[BlackFideId "1454153"]
[WhiteElo "2624"]
[BlackElo "2442"]
[WhiteTeam "MGL"]
[BlackTeam "DEN"]
[WhiteClock "0:00:10"]
[BlackClock "0:00:23"]

1. d4 {[%clk 0:03:00]}  Nf6 {[%clk 0:02:58]} 2. c4 {[%clk 0:02:56]}  g6 {[%clk 0:02:58]} 3. Nc3 {[%clk 0:02:48]}  d5 {[%clk 0:02:59]} 4. cxd5 {[%clk 0:02:49]}  Nxd5 {[%clk 0:02:59]} 5. e4 {[%clk 0:02:49]}  Nxc3 {[%clk 0:03:00]} 6. bxc3 {[%clk 0:02:50]}  Bg7 {[%clk 0:03:01]} 7. Bc4 {[%clk 0:02:50]}  c5 {[%clk 0:03:01]} 8. Ne2 {[%clk 0:02:51]}  Nc6 {[%clk 0:03:00]} 9. Be3 {[%clk 0:02:50]}  O-O {[%clk 0:02:59]} 10. O-O {[%clk 0:02:50]}  Bg4 {[%clk 0:02:56]} 11. f3 {[%clk 0:02:51]}  cxd4 {[%clk 0:02:54]} 12. cxd4 {[%clk 0:02:50]}  Na5 {[%clk 0:02:55]} 13. Bd3 {[%clk 0:02:49]}  Be6 {[%clk 0:02:54]} 14. d5 {[%clk 0:02:47]}  Bxa1 {[%clk 0:02:55]} 15. Qxa1 {[%clk 0:02:47]}  f6 {[%clk 0:02:56]} 16. h4 {[%clk 0:02:43]}  Rc8 {[%clk 0:02:44]} 17. h5 {[%clk 0:02:40]}  Bf7 {[%clk 0:02:43]} 18. hxg6 {[%clk 0:02:39]}  hxg6 {[%clk 0:02:40]} 19. Rd1 {[%clk 0:02:36]}  Nc4 {[%clk 0:02:38]} 20. Bh6 {[%clk 0:02:36]}  Qb6+ {[%clk 0:02:31]} 21. Kh1 {[%clk 0:02:08]}  Rfd8 {[%clk 0:01:40]} 22. Rb1 {[%clk 0:02:04]}  Qf2 {[%clk 0:01:37]} 23. Bf4 {[%clk 0:01:10]}  Kg7 {[%clk 0:01:36]} 24. Bh2 {[%clk 0:00:48]}  Rh8 {[%clk 0:01:36]} 25. Ng1 {[%clk 0:00:42]}  Nd2 {[%clk 0:00:55]} 26. Rb2 {[%clk 0:00:26]}  Rxh2+ {[%clk 0:00:23]} 27. Kxh2 {[%clk 0:00:26]}  Nxf3+ {[%clk 0:00:23]} 28. Kh1 {[%clk 0:00:27]}  Rh8+ {[%clk 0:00:23]} 29. Nh3 {[%clk 0:00:10]}  Qg3 {[%clk 0:00:23]} 0-1

[Event "December 5 Early 2023"]
[Site "https://www.chess.com"]
[Date "2023.12.05"]
[Round "5"]
[White "Gimenez Aguirre, Alejo Ismael"]
[Black "Matrix3x3a"]
[Result "1-0"]
[Board "110"]
[TimeControl "180+1"]
[WhiteFideId "32041667"]
[WhiteElo "2622"]
[BlackElo "2442"]
[WhiteTeam "ARG"]
[WhiteClock "0:00:35"]
[BlackClock "0:00:40"]

1. e4 {[%clk 0:03:00]}  c5 {[%clk 0:03:00]} 2. Nf3 {[%clk 0:02:59]}  d6 {[%clk 0:03:00]} 3. d4 {[%clk 0:02:59]}  cxd4 {[%clk 0:03:01]} 4. Nxd4 {[%clk 0:03:00]}  Nf6 {[%clk 0:03:02]} 5. Nc3 {[%clk 0:02:59]}  a6 {[%clk 0:03:02]} 6. Be3 {[%clk 0:02:56]}  e5 {[%clk 0:03:02]} 7. Nb3 {[%clk 0:02:47]}  Be7 {[%clk 0:03:02]} 8. f3 {[%clk 0:02:47]}  Be6 {[%clk 0:03:01]} 9. Qd2 {[%clk 0:02:45]}  h5 {[%clk 0:03:01]} 10. O-O-O {[%clk 0:02:45]}  Nbd7 {[%clk 0:03:00]} 11. Kb1 {[%clk 0:02:38]}  b5 {[%clk 0:02:57]} 12. Nd5 {[%clk 0:02:33]}  Nxd5 {[%clk 0:02:54]} 13. exd5 {[%clk 0:02:29]}  Bf5 {[%clk 0:02:54]} 14. Rg1 {[%clk 0:02:29]}  Rc8 {[%clk 0:02:43]} 15. Bd3 {[%clk 0:02:27]}  Bxd3 {[%clk 0:02:43]} 16. Qxd3 {[%clk 0:02:25]}  Bg5 {[%clk 0:02:27]} 17. g3 {[%clk 0:01:44]}  Bxe3 {[%clk 0:02:14]} 18. Qxe3 {[%clk 0:01:45]}  O-O {[%clk 0:02:12]} 19. g4 {[%clk 0:01:43]}  h4 {[%clk 0:02:07]} 20. g5 {[%clk 0:01:43]}  g6 {[%clk 0:02:02]} 21. Nd2 {[%clk 0:01:40]}  Nb6 {[%clk 0:02:00]} 22. Ne4 {[%clk 0:01:38]}  Nc4 {[%clk 0:01:59]} 23. Qf2 {[%clk 0:01:37]}  Kg7 {[%clk 0:01:58]} 24. Rg4 {[%clk 0:01:28]}  Rh8 {[%clk 0:01:52]} 25. Rxh4 {[%clk 0:01:28]}  Qc7 {[%clk 0:01:29]} 26. Rxh8 {[%clk 0:01:21]}  Rxh8 {[%clk 0:01:30]} 27. h4 {[%clk 0:01:12]}  a5 {[%clk 0:01:23]} 28. Nf6 {[%clk 0:01:12]}  a4 {[%clk 0:01:19]} 29. h5 {[%clk 0:01:09]}  gxh5 {[%clk 0:01:18]} 30. Rh1 {[%clk 0:01:08]}  a3 {[%clk 0:01:10]} 31. Nxh5+ {[%clk 0:01:06]}  Kg6 {[%clk 0:01:05]} 32. f4 {[%clk 0:00:46]}  Qc8 {[%clk 0:00:54]} 33. f5+ {[%clk 0:00:43]}  Kxg5 {[%clk 0:00:44]} 34. Qg3+ {[%clk 0:00:36]}  Kxf5 {[%clk 0:00:43]} 35. Rf1+ {[%clk 0:00:36]}  Ke4 {[%clk 0:00:40]} 36. Qd3# {[%clk 0:00:35]} 1-0

[Event "December 5 Early 2023"]
[Site "https://www.chess.com"]
[Date "2023.12.05"]
[Round "5"]
[White "Filipovic, Slobodan J"]
[Black "Goldin, Alexander"]
[Result "1-0"]
[Board "111"]
[TimeControl "180+1"]
[WhiteFideId "939633"]
[BlackFideId "2019540"]
[WhiteElo "2441"]
[BlackElo "2603"]
[WhiteTeam "SRB"]
[BlackTeam "USA"]
[WhiteClock "0:00:07"]
[BlackClock "0:00:06"]

1. c4 {[%clk 0:03:00]}  e6 {[%clk 0:02:59]} 2. Nf3 {[%clk 0:02:58]}  d5 {[%clk 0:02:58]} 3. b3 {[%clk 0:02:57]}  Nf6 {[%clk 0:02:57]} 4. Bb2 {[%clk 0:02:57]}  b6 {[%clk 0:02:53]} 5. g3 {[%clk 0:02:57]}  Bb7 {[%clk 0:02:52]} 6. Bg2 {[%clk 0:02:58]}  Be7 {[%clk 0:02:49]} 7. O-O {[%clk 0:02:57]}  O-O {[%clk 0:02:50]} 8. d4 {[%clk 0:02:52]}  Nbd7 {[%clk 0:02:46]} 9. Nc3 {[%clk 0:02:50]}  a6 {[%clk 0:02:42]} 10. cxd5 {[%clk 0:02:49]}  exd5 {[%clk 0:02:41]} 11. Rc1 {[%clk 0:02:48]}  Bd6 {[%clk 0:02:41]} 12. Nh4 {[%clk 0:02:41]}  Re8 {[%clk 0:02:39]} 13. Nf5 {[%clk 0:02:38]}  Bf8 {[%clk 0:02:39]} 14. Qc2 {[%clk 0:02:37]}  g6 {[%clk 0:02:33]} 15. Ne3 {[%clk 0:02:20]}  c6 {[%clk 0:02:33]} 16. Rcd1 {[%clk 0:02:01]}  Qe7 {[%clk 0:02:28]} 17. h3 {[%clk 0:01:50]}  h5 {[%clk 0:02:27]} 18. Rfe1 {[%clk 0:01:49]}  h4 {[%clk 0:02:10]} 19. g4 {[%clk 0:01:45]}  Qd6 {[%clk 0:02:09]} 20. Nf1 {[%clk 0:01:45]}  Rad8 {[%clk 0:01:42]} 21. f3 {[%clk 0:01:39]}  c5 {[%clk 0:01:41]} 22. e3 {[%clk 0:01:28]}  b5 {[%clk 0:01:38]} 23. Qf2 {[%clk 0:01:22]}  b4 {[%clk 0:01:36]} 24. dxc5 {[%clk 0:01:08]}  Nxc5 {[%clk 0:01:29]} 25. Ne2 {[%clk 0:01:03]}  Bg7 {[%clk 0:00:49]} 26. Qxh4 {[%clk 0:00:56]}  a5 {[%clk 0:00:49]} 27. Nf4 {[%clk 0:00:38]}  Qe7 {[%clk 0:00:43]} 28. Bd4 {[%clk 0:00:34]}  Ba6 {[%clk 0:00:40]} 29. g5 {[%clk 0:00:32]}  Nh7 {[%clk 0:00:39]} 30. Bxg7 {[%clk 0:00:31]}  Kxg7 {[%clk 0:00:39]} 31. Qh6+ {[%clk 0:00:26]}  Kg8 {[%clk 0:00:37]} 32. Nxd5 {[%clk 0:00:26]}  Rxd5 {[%clk 0:00:29]} 33. Rxd5 {[%clk 0:00:25]}  Bb7 {[%clk 0:00:30]} 34. Rd4 {[%clk 0:00:24]}  Nxg5 {[%clk 0:00:29]} 35. Rh4 {[%clk 0:00:20]}  Qf6 {[%clk 0:00:28]} 36. f4 {[%clk 0:00:19]}  Nf3+ {[%clk 0:00:19]} 37. Bxf3 {[%clk 0:00:18]}  Bxf3 {[%clk 0:00:20]} 38. Qh7+ {[%clk 0:00:18]}  Kf8 {[%clk 0:00:20]} 39. Qh8+ {[%clk 0:00:19]}  Ke7 {[%clk 0:00:19]} 40. Qxf6+ {[%clk 0:00:18]}  Kxf6 {[%clk 0:00:19]} 41. Nd2 {[%clk 0:00:18]}  Bd5 {[%clk 0:00:18]} 42. e4 {[%clk 0:00:18]}  Nxe4 {[%clk 0:00:18]} 43. Nxe4+ {[%clk 0:00:18]}  Bxe4 {[%clk 0:00:19]} 44. f5 {[%clk 0:00:16]}  gxf5 {[%clk 0:00:19]} 45. Rf4 {[%clk 0:00:16]}  Ke5 {[%clk 0:00:19]} 46. Rf2 {[%clk 0:00:15]}  Rd8 {[%clk 0:00:19]} 47. Kh2 {[%clk 0:00:15]}  Rd3 {[%clk 0:00:19]} 48. Ree2 {[%clk 0:00:15]}  f4 {[%clk 0:00:17]} 49. h4 {[%clk 0:00:15]}  f3 {[%clk 0:00:17]} 50. Rd2 {[%clk 0:00:14]}  Rc3 {[%clk 0:00:15]} 51. Kg3 {[%clk 0:00:14]}  Rc8 {[%clk 0:00:14]} 52. Rh2 {[%clk 0:00:13]}  Rg8+ {[%clk 0:00:14]} 53. Kf2 {[%clk 0:00:13]}  Kf4 {[%clk 0:00:14]} 54. h5 {[%clk 0:00:13]}  Rc8 {[%clk 0:00:03]} 55. h6 {[%clk 0:00:12]}  Bh7 {[%clk 0:00:03]} 56. Rd4+ {[%clk 0:00:11]}  Ke5 {[%clk 0:00:03]} 57. Rd2 {[%clk 0:00:08]}  Rc3 {[%clk 0:00:04]} 58. Kg3 {[%clk 0:00:08]}  Ke4 {[%clk 0:00:05]} 59. Rdf2 {[%clk 0:00:06]}  Rc6 {[%clk 0:00:04]} 60. Rh4+ {[%clk 0:00:07]}  Ke3 {[%clk 0:00:02]} 61. Rxf3+ {[%clk 0:00:07]}  Ke2 {[%clk 0:00:03]} 62. Rh2+ {[%clk 0:00:07]}  Ke1 {[%clk 0:00:03]} 63. Rh1+ {[%clk 0:00:07]}  Ke2 {[%clk 0:00:02]} 64. Rh2+ {[%clk 0:00:07]}  Ke1 {[%clk 0:00:02]} 65. Rxf7 {[%clk 0:00:08]}  Rg6+ {[%clk 0:00:02]} 66. Kf4 {[%clk 0:00:08]}  Bg8 {[%clk 0:00:03]} 67. Rg7 {[%clk 0:00:08]}  Rf6+ {[%clk 0:00:03]} 68. Kg5 {[%clk 0:00:08]}  Rf8 {[%clk 0:00:04]} 69. h7 {[%clk 0:00:08]}  Bxh7 {[%clk 0:00:05]} 70. Rhxh7 {[%clk 0:00:08]}  Rf2 {[%clk 0:00:06]} 71. Re7+ {[%clk 0:00:08]}  Kd2 {[%clk 0:00:07]} 72. Rc7 {[%clk 0:00:06]}  Rg2+ {[%clk 0:00:06]} 73. Kf4 {[%clk 0:00:07]}  Re2 {[%clk 0:00:07]} 74. Rhe7 {[%clk 0:00:06]}  Ke1 {[%clk 0:00:08]} 75. Rxe2+ {[%clk 0:00:05]}  Kxe2 {[%clk 0:00:09]} 76. Rc5 {[%clk 0:00:06]}  Kd3 {[%clk 0:00:06]} 77. Rc4 {[%clk 0:00:07]} 1-0

[Event "December 5 Early 2023"]
[Site "https://www.chess.com"]
[Date "2023.12.05"]
[Round "5"]
[White "Bychkov, Vladimir"]
[Black "Janaszak, Dawid"]
[Result "1-0"]
[Board "112"]
[TimeControl "180+1"]
[WhiteFideId "24151513"]
[BlackFideId "1119206"]
[WhiteElo "2438"]
[BlackElo "2603"]
[WhiteTeam "RUS"]
[BlackTeam "POL"]
[WhiteClock "0:00:04"]
[BlackClock "0:00:04"]

1. e4 {[%clk 0:02:56]}  c5 {[%clk 0:03:00]} 2. Nf3 {[%clk 0:02:54]}  b6 {[%clk 0:03:00]} 3. a4 {[%clk 0:02:51]}  Bb7 {[%clk 0:02:58]} 4. Nc3 {[%clk 0:02:51]}  a6 {[%clk 0:02:57]} 5. d4 {[%clk 0:02:49]}  cxd4 {[%clk 0:02:57]} 6. Nxd4 {[%clk 0:02:50]}  e6 {[%clk 0:02:57]} 7. Be2 {[%clk 0:02:48]}  Qc7 {[%clk 0:02:56]} 8. O-O {[%clk 0:02:47]}  Nf6 {[%clk 0:02:56]} 9. Bf3 {[%clk 0:02:46]}  Nc6 {[%clk 0:02:52]} 10. Nxc6 {[%clk 0:02:38]}  Bxc6 {[%clk 0:02:51]} 11. a5 {[%clk 0:02:25]}  b5 {[%clk 0:02:35]} 12. Nd5 {[%clk 0:02:23]}  Qb8 {[%clk 0:02:21]} 13. Nb6 {[%clk 0:02:13]}  Ra7 {[%clk 0:02:18]} 14. Re1 {[%clk 0:01:56]}  Bd6 {[%clk 0:02:15]} 15. e5 {[%clk 0:01:26]}  Bxe5 {[%clk 0:02:15]} 16. Bxc6 {[%clk 0:01:26]}  dxc6 {[%clk 0:02:16]} 17. g3 {[%clk 0:01:15]}  O-O {[%clk 0:02:12]} 18. Bg5 {[%clk 0:01:06]}  Bxb2 {[%clk 0:02:01]} 19. Rb1 {[%clk 0:00:51]}  Bc3 {[%clk 0:02:01]} 20. Bxf6 {[%clk 0:00:36]}  Bxf6 {[%clk 0:02:01]} 21. Nd7 {[%clk 0:00:35]}  Rxd7 {[%clk 0:01:54]} 22. Qxd7 {[%clk 0:00:36]}  Rc8 {[%clk 0:01:49]} 23. Red1 {[%clk 0:00:36]}  h6 {[%clk 0:01:46]} 24. Rb3 {[%clk 0:00:35]}  c5 {[%clk 0:01:44]} 25. Rbd3 {[%clk 0:00:33]}  c4 {[%clk 0:01:20]} 26. Rd6 {[%clk 0:00:33]}  b4 {[%clk 0:01:14]} 27. Rb6 {[%clk 0:00:33]}  Qa8 {[%clk 0:01:14]} 28. Rb7 {[%clk 0:00:29]}  Rf8 {[%clk 0:01:12]} 29. Qc7 {[%clk 0:00:23]}  Bd8 {[%clk 0:00:59]} 30. Qc6 {[%clk 0:00:18]}  Bxa5 {[%clk 0:00:58]} 31. Rdd7 {[%clk 0:00:16]}  b3 {[%clk 0:00:54]} 32. Qxc4 {[%clk 0:00:14]}  bxc2 {[%clk 0:00:40]} 33. Qxc2 {[%clk 0:00:15]}  Bd8 {[%clk 0:00:36]} 34. Qa4 {[%clk 0:00:14]}  a5 {[%clk 0:00:35]} 35. Qf4 {[%clk 0:00:14]}  Bf6 {[%clk 0:00:35]} 36. Qa4 {[%clk 0:00:13]}  Qa6 {[%clk 0:00:34]} 37. Ra7 {[%clk 0:00:12]}  Qe2 {[%clk 0:00:30]} 38. Qxa5 {[%clk 0:00:12]}  h5 {[%clk 0:00:24]} 39. Ra8 {[%clk 0:00:11]}  g6 {[%clk 0:00:18]} 40. Rxf8+ {[%clk 0:00:11]}  Kxf8 {[%clk 0:00:19]} 41. Qc5+ {[%clk 0:00:10]}  Kg7 {[%clk 0:00:18]} 42. Qc1 {[%clk 0:00:10]}  Qf3 {[%clk 0:00:17]} 43. Rc7 {[%clk 0:00:09]}  h4 {[%clk 0:00:17]} 44. Qc6 {[%clk 0:00:09]}  Qd1+ {[%clk 0:00:14]} 45. Kg2 {[%clk 0:00:09]}  h3+ {[%clk 0:00:12]} 46. Kxh3 {[%clk 0:00:09]}  Qf1+ {[%clk 0:00:12]} 47. Qg2 {[%clk 0:00:10]}  Qd3 {[%clk 0:00:12]} 48. Rc5 {[%clk 0:00:09]}  Qd1 {[%clk 0:00:12]} 49. g4 {[%clk 0:00:09]}  Qd4 {[%clk 0:00:11]} 50. Rc8 {[%clk 0:00:07]}  Bg5 {[%clk 0:00:11]} 51. Qf3 {[%clk 0:00:07]}  Bf6 {[%clk 0:00:10]} 52. Kg2 {[%clk 0:00:07]}  Qe5 {[%clk 0:00:09]} 53. Ra8 {[%clk 0:00:07]}  Qg5 {[%clk 0:00:09]} 54. Ra7 {[%clk 0:00:07]}  Qe5 {[%clk 0:00:09]} 55. h3 {[%clk 0:00:07]}  Qg5 {[%clk 0:00:09]} 56. Qg3 {[%clk 0:00:07]}  e5 {[%clk 0:00:09]} 57. Qf3 {[%clk 0:00:07]}  Qd2 {[%clk 0:00:06]} 58. h4 {[%clk 0:00:07]}  g5 {[%clk 0:00:05]} 59. hxg5 {[%clk 0:00:07]}  Qxg5 {[%clk 0:00:05]} 60. Ra6 {[%clk 0:00:07]}  Qh4 {[%clk 0:00:05]} 61. Qf5 {[%clk 0:00:06]}  Qg5 {[%clk 0:00:05]} 62. Qf3 {[%clk 0:00:06]}  Qh4 {[%clk 0:00:02]} 63. Ra7 {[%clk 0:00:06]}  Qg5 {[%clk 0:00:03]} 64. Qg3 {[%clk 0:00:06]}  Qg6 {[%clk 0:00:03]} 65. Qb3 {[%clk 0:00:05]}  e4 {[%clk 0:00:03]} 66. Qg3 {[%clk 0:00:05]}  Bd4 {[%clk 0:00:03]} 67. Qf4 {[%clk 0:00:05]}  Bxa7 {[%clk 0:00:03]} 68. g5 {[%clk 0:00:05]}  e3 {[%clk 0:00:02]} 69. fxe3 {[%clk 0:00:05]}  Qc2+ {[%clk 0:00:03]} 70. Kf3 {[%clk 0:00:05]}  Qa2 {[%clk 0:00:03]} 71. Qf6+ {[%clk 0:00:05]}  Kg8 {[%clk 0:00:03]} 72. g6 {[%clk 0:00:05]}  Qd5+ {[%clk 0:00:04]} 73. e4 {[%clk 0:00:03]}  Qd3+ {[%clk 0:00:04]} 74. Kg2 {[%clk 0:00:01]}  Qe2+ {[%clk 0:00:04]} 75. Kh3 {[%clk 0:00:01]}  Qd3+ {[%clk 0:00:03]} 76. Kg4 {[%clk 0:00:01]}  Qxe4+ {[%clk 0:00:04]} 77. Kh5 {[%clk 0:00:02]}  Qh1+ {[%clk 0:00:04]} 78. Kg4 {[%clk 0:00:02]}  Bb6 {[%clk 0:00:04]} 79. Qxf7+ {[%clk 0:00:02]}  Kh8 {[%clk 0:00:05]} 80. g7+ {[%clk 0:00:02]}  Kh7 {[%clk 0:00:04]} 81. g8=Q+ {[%clk 0:00:03]}  Kh6 {[%clk 0:00:04]} 82. Qgg6# {[%clk 0:00:04]} 1-0

[Event "December 5 Early 2023"]
[Site "https://www.chess.com"]
[Date "2023.12.05"]
[Round "5"]
[White "Sahil, Tickoo"]
[Black "Ianovsky, Matias Manuel"]
[Result "0-1"]
[Board "115"]
[TimeControl "180+1"]
[WhiteFideId "5019710"]
[BlackFideId "112470"]
[WhiteElo "2426"]
[BlackElo "2599"]
[WhiteTeam "IND"]
[BlackTeam "ARG"]
[WhiteClock "0:00:44"]
[BlackClock "0:00:58"]

1. d4 {[%clk 0:02:56]}  Nf6 {[%clk 0:02:53]} 2. c4 {[%clk 0:02:55]}  g6 {[%clk 0:02:53]} 3. Nc3 {[%clk 0:02:55]}  d5 {[%clk 0:02:53]} 4. cxd5 {[%clk 0:02:56]}  Nxd5 {[%clk 0:02:54]} 5. e4 {[%clk 0:02:57]}  Nxc3 {[%clk 0:02:54]} 6. bxc3 {[%clk 0:02:57]}  Bg7 {[%clk 0:02:55]} 7. Be3 {[%clk 0:02:58]}  c5 {[%clk 0:02:54]} 8. Rc1 {[%clk 0:02:59]}  Nc6 {[%clk 0:02:53]} 9. d5 {[%clk 0:02:57]}  Ne5 {[%clk 0:02:51]} 10. Be2 {[%clk 0:02:54]}  O-O {[%clk 0:02:47]} 11. f4 {[%clk 0:02:53]}  Nd7 {[%clk 0:02:45]} 12. Nf3 {[%clk 0:02:52]}  Nf6 {[%clk 0:02:34]} 13. Qc2 {[%clk 0:02:42]}  b6 {[%clk 0:02:28]} 14. h3 {[%clk 0:02:38]}  e6 {[%clk 0:02:21]} 15. dxe6 {[%clk 0:02:33]}  fxe6 {[%clk 0:02:04]} 16. Rd1 {[%clk 0:02:17]}  Qe7 {[%clk 0:01:51]} 17. Ne5 {[%clk 0:02:14]}  Bb7 {[%clk 0:01:49]} 18. Bf3 {[%clk 0:02:12]}  Rad8 {[%clk 0:01:15]} 19. O-O {[%clk 0:02:12]}  Ne8 {[%clk 0:01:04]} 20. Rxd8 {[%clk 0:02:01]}  Qxd8 {[%clk 0:01:05]} 21. Rd1 {[%clk 0:02:00]}  Qh4 {[%clk 0:01:04]} 22. Rd7 {[%clk 0:01:22]}  Qe1+ {[%clk 0:01:00]} 23. Kh2 {[%clk 0:00:44]}  Qxe3 {[%clk 0:00:58]} 0-1

[Event "December 5 Early 2023"]
[Site "https://www.chess.com"]
[Date "2023.12.05"]
[Round "5"]
[White "Toman, Ondrej"]
[Black "Federzoni, Enzo"]
[Result "1-0"]
[Board "117"]
[TimeControl "180+1"]
[WhiteFideId "344516"]
[BlackFideId "2173301"]
[WhiteElo "2596"]
[BlackElo "2420"]
[WhiteTeam "CZE"]
[BlackTeam "BRA"]
[WhiteClock "0:00:18"]
[BlackClock "0:00:19"]

1. d4 {[%clk 0:03:00]}  Nf6 {[%clk 0:02:59]} 2. Bg5 {[%clk 0:03:01]}  Ne4 {[%clk 0:02:55]} 3. h4 {[%clk 0:03:01]}  d5 {[%clk 0:02:53]} 4. Nd2 {[%clk 0:03:01]}  h6 {[%clk 0:02:50]} 5. Bf4 {[%clk 0:03:00]}  Nxd2 {[%clk 0:02:47]} 6. Qxd2 {[%clk 0:03:00]}  e6 {[%clk 0:02:47]} 7. e3 {[%clk 0:03:00]}  c6 {[%clk 0:02:48]} 8. Bd3 {[%clk 0:02:59]}  Nd7 {[%clk 0:02:47]} 9. g4 {[%clk 0:02:56]}  Qb6 {[%clk 0:02:44]} 10. O-O-O {[%clk 0:02:54]}  c5 {[%clk 0:02:44]} 11. c3 {[%clk 0:02:47]}  Nf6 {[%clk 0:02:41]} 12. f3 {[%clk 0:02:34]}  Bd7 {[%clk 0:02:41]} 13. Ne2 {[%clk 0:02:32]}  O-O-O {[%clk 0:02:39]} 14. g5 {[%clk 0:02:32]}  hxg5 {[%clk 0:02:39]} 15. hxg5 {[%clk 0:02:33]}  Rxh1 {[%clk 0:02:39]} 16. Rxh1 {[%clk 0:02:34]}  Ne8 {[%clk 0:02:39]} 17. Rh8 {[%clk 0:02:14]}  Bd6 {[%clk 0:02:39]} 18. Bxd6 {[%clk 0:02:13]}  Nxd6 {[%clk 0:02:37]} 19. Rxd8+ {[%clk 0:02:13]}  Kxd8 {[%clk 0:02:38]} 20. Nf4 {[%clk 0:02:10]}  g6 {[%clk 0:02:32]} 21. Qh2 {[%clk 0:02:09]}  Bb5 {[%clk 0:02:29]} 22. Qh8+ {[%clk 0:02:04]}  Kd7 {[%clk 0:02:26]} 23. Qg7 {[%clk 0:01:42]}  cxd4 {[%clk 0:02:25]} 24. exd4 {[%clk 0:01:39]}  Kc6 {[%clk 0:02:06]} 25. Qf8 {[%clk 0:01:20]}  Qa6 {[%clk 0:02:05]} 26. Bb1 {[%clk 0:01:14]}  Bc4 {[%clk 0:01:47]} 27. b3 {[%clk 0:01:02]}  Bb5 {[%clk 0:01:44]} 28. a4 {[%clk 0:00:50]}  Bxa4 {[%clk 0:01:26]} 29. bxa4 {[%clk 0:00:51]}  Qf1+ {[%clk 0:01:26]} 30. Kc2 {[%clk 0:00:37]}  Qf2+ {[%clk 0:01:23]} 31. Kb3 {[%clk 0:00:34]}  Qxf3 {[%clk 0:00:49]} 32. Nxe6 {[%clk 0:00:30]}  Qe2 {[%clk 0:00:29]} 33. Nc5 {[%clk 0:00:21]}  Qc4+ {[%clk 0:00:25]} 34. Kb2 {[%clk 0:00:20]}  b6 {[%clk 0:00:23]} 35. Bd3 {[%clk 0:00:19]}  bxc5 {[%clk 0:00:20]} 36. Bxc4 {[%clk 0:00:19]}  Nxc4+ {[%clk 0:00:19]} 37. Kc2 {[%clk 0:00:18]} 1-0

[Event "December 5 Early 2023"]
[Site "https://www.chess.com"]
[Date "2023.12.05"]
[Round "5"]
[White "Skatchkov, Valery"]
[Black "Bochnicka, Vladimir"]
[Result "1-0"]
[Board "118"]
[TimeControl "180+1"]
[WhiteFideId "24195812"]
[BlackFideId "14943450"]
[WhiteElo "2596"]
[BlackElo "2417"]
[WhiteTeam "RUS"]
[BlackTeam "SVK"]
[WhiteClock "0:01:17"]
[BlackClock "0:00:02"]

1. d4 {[%clk 0:03:00]}  Nf6 {[%clk 0:02:59]} 2. c4 {[%clk 0:03:00]}  g6 {[%clk 0:03:00]} 3. Nc3 {[%clk 0:03:00]}  Bg7 {[%clk 0:03:01]} 4. e4 {[%clk 0:03:01]}  d6 {[%clk 0:03:01]} 5. h3 {[%clk 0:03:01]}  O-O {[%clk 0:03:01]} 6. Bg5 {[%clk 0:03:01]}  c5 {[%clk 0:02:48]} 7. d5 {[%clk 0:03:01]}  Nbd7 {[%clk 0:02:38]} 8. Nf3 {[%clk 0:02:53]}  a6 {[%clk 0:02:23]} 9. a4 {[%clk 0:02:50]}  Qa5 {[%clk 0:02:21]} 10. Bd3 {[%clk 0:02:44]}  e6 {[%clk 0:01:51]} 11. O-O {[%clk 0:02:39]}  exd5 {[%clk 0:01:51]} 12. exd5 {[%clk 0:02:34]}  Qb4 {[%clk 0:01:23]} 13. Qc2 {[%clk 0:02:28]}  Nb6 {[%clk 0:01:13]} 14. a5 {[%clk 0:02:19]}  Nxc4 {[%clk 0:01:05]} 15. Ra4 {[%clk 0:02:11]}  Qxb2 {[%clk 0:01:03]} 16. Rxc4 {[%clk 0:02:11]}  Qxc2 {[%clk 0:00:58]} 17. Bxc2 {[%clk 0:02:12]}  Re8 {[%clk 0:00:49]} 18. Rb1 {[%clk 0:02:11]}  Nd7 {[%clk 0:00:41]} 19. Ne4 {[%clk 0:02:06]}  Ne5 {[%clk 0:00:39]} 20. Nxe5 {[%clk 0:01:35]}  Rxe5 {[%clk 0:00:30]} 21. Rd1 {[%clk 0:01:19]}  Bf8 {[%clk 0:00:08]} 22. Bf4 {[%clk 0:01:17]}  Re8 {[%clk 0:00:02]} 23. Nf6+ {[%clk 0:01:17]} 1-0

[Event "December 5 Early 2023"]
[Site "https://www.chess.com"]
[Date "2023.12.05"]
[Round "5"]
[White "Stoleriu, George"]
[Black "Kiremitciyan, Ari"]
[Result "0-1"]
[Board "119"]
[TimeControl "180+1"]
[WhiteFideId "1227505"]
[BlackFideId "6373445"]
[WhiteElo "2596"]
[BlackElo "2403"]
[WhiteTeam "ROU"]
[BlackTeam "TUR"]
[WhiteClock "0:00:49"]
[BlackClock "0:01:41"]

1. e4 {[%clk 0:03:00]}  c6 {[%clk 0:02:59]} 2. b3 {[%clk 0:02:58]}  d5 {[%clk 0:02:59]} 3. Bb2 {[%clk 0:02:59]}  dxe4 {[%clk 0:02:59]} 4. Nc3 {[%clk 0:02:58]}  Nf6 {[%clk 0:02:58]} 5. f3 {[%clk 0:02:59]}  exf3 {[%clk 0:02:56]} 6. Nxf3 {[%clk 0:02:59]}  g6 {[%clk 0:02:53]} 7. Ne4 {[%clk 0:02:59]}  Bg7 {[%clk 0:02:53]} 8. Nxf6+ {[%clk 0:02:59]}  Bxf6 {[%clk 0:02:50]} 9. Bxf6 {[%clk 0:02:59]}  exf6 {[%clk 0:02:51]} 10. Be2 {[%clk 0:03:00]}  O-O {[%clk 0:02:51]} 11. O-O {[%clk 0:03:01]}  c5 {[%clk 0:02:48]} 12. Kh1 {[%clk 0:03:02]}  Nc6 {[%clk 0:02:48]} 13. d3 {[%clk 0:03:00]}  Kg7 {[%clk 0:02:46]} 14. Qd2 {[%clk 0:03:00]}  b6 {[%clk 0:02:40]} 15. Qc3 {[%clk 0:03:00]}  Bb7 {[%clk 0:02:33]} 16. Rae1 {[%clk 0:02:56]}  Re8 {[%clk 0:02:31]} 17. Bd1 {[%clk 0:02:13]}  Qd6 {[%clk 0:02:25]} 18. Ng5 {[%clk 0:01:26]}  Qd4 {[%clk 0:02:17]} 19. Qxd4 {[%clk 0:01:20]}  Nxd4 {[%clk 0:02:18]} 20. Nh3 {[%clk 0:01:18]}  Rxe1 {[%clk 0:02:12]} 21. Rxe1 {[%clk 0:01:19]}  Kf8 {[%clk 0:02:12]} 22. Kg1 {[%clk 0:01:18]}  Re8 {[%clk 0:02:11]} 23. Rxe8+ {[%clk 0:01:19]}  Kxe8 {[%clk 0:02:12]} 24. c3 {[%clk 0:01:19]}  Nb5 {[%clk 0:02:11]} 25. c4 {[%clk 0:01:16]}  Nc3 {[%clk 0:02:10]} 26. Bf3 {[%clk 0:01:14]}  Bxf3 {[%clk 0:02:09]} 27. gxf3 {[%clk 0:01:15]}  Nxa2 {[%clk 0:02:10]} 28. Nf4 {[%clk 0:01:13]}  Nc1 {[%clk 0:02:07]} 29. Nd5 {[%clk 0:01:11]}  f5 {[%clk 0:02:05]} 30. b4 {[%clk 0:01:07]}  Nxd3 {[%clk 0:02:03]} 31. b5 {[%clk 0:01:06]}  Nb2 {[%clk 0:02:03]} 32. Kf2 {[%clk 0:00:54]}  Nxc4 {[%clk 0:02:02]} 33. Kg3 {[%clk 0:00:55]}  Nd6 {[%clk 0:02:01]} 34. Nc3 {[%clk 0:00:55]}  g5 {[%clk 0:01:59]} 35. h4 {[%clk 0:00:55]}  f6 {[%clk 0:01:58]} 36. h5 {[%clk 0:00:54]}  h6 {[%clk 0:01:56]} 37. Nd5 {[%clk 0:00:54]}  Kf7 {[%clk 0:01:55]} 38. Nc7 {[%clk 0:00:54]}  c4 {[%clk 0:01:50]} 39. Kf2 {[%clk 0:00:54]}  c3 {[%clk 0:01:48]} 40. Ke3 {[%clk 0:00:54]}  g4 {[%clk 0:01:48]} 41. fxg4 {[%clk 0:00:55]}  fxg4 {[%clk 0:01:49]} 42. Nd5 {[%clk 0:00:55]}  Nxb5 {[%clk 0:01:46]} 43. Kd3 {[%clk 0:00:55]}  g3 {[%clk 0:01:46]} 44. Nf4 {[%clk 0:00:54]}  f5 {[%clk 0:01:43]} 45. Kc2 {[%clk 0:00:49]}  Kf6 {[%clk 0:01:41]} 0-1